bitfinex-derivatives/quotes_BTCF0:USTF0_20250918
["timestamp","ask_amount","ask_price","bid_price","bid_amount"]
[1758227811090,0.0001,117630.0,117620.0,0.0849822]
[1758227811290,0.02195,117670.0,117660.0,0.03498]
[1758227811493,0.1068726,117680.0,117670.0,0.03498]
[1758227811700,1.31169338,117680.0,117670.0,1.39751078]
[1758227812000,1.31161258,117680.0,117670.0,1.38474078]
[1758227813296,1.31161258,117680.0,117670.0,1.45414091]
[1758227813495,0.1202818,117680.0,117670.0,1.45414091]
[1758227813698,1.31157258,117680.0,117670.0,1.45414091]
[1758227814088,0.8898418,117680.0,117670.0,1.45414091]
[1758227814288,1.31157258,117680.0,117670.0,1.45414091]
[1758227814900,0.8898418,117680.0,117670.0,1.45414091]
[1758227815100,1.31157258,117680.0,117670.0,1.45414091]
[1758227815604,0.8898418,117680.0,117670.0,1.45414091]
[1758227815901,1.31157258,117680.0,117670.0,1.45414091]
[1758227816098,1.31157258,117680.0,117670.0,1.21414091]
[1758227816294,0.54201258,117680.0,117670.0,0.87414091]
[1758227816494,1.31137258,117680.0,117670.0,0.87414091]
[1758227816887,1.31141258,117680.0,117670.0,0.87414091]
[1758227817085,0.54201258,117680.0,117670.0,0.87414091]
[1758227817291,1.31141258,117680.0,117670.0,0.87414091]
[1758227817699,0.54201258,117680.0,117670.0,0.87414091]
[1758227817898,1.31137258,117680.0,117670.0,0.87414091]
[1758227818399,0.54201258,117680.0,117670.0,0.87414091]
[1758227818598,1.31133258,117680.0,117670.0,0.87414091]
[1758227818801,1.31133258,117680.0,117670.0,0.88674091]
[1758227819103,0.54201258,117680.0,117670.0,0.88674091]
[1758227819300,0.54201258,117680.0,117670.0,1.46674091]
[1758227819301,0.8761118,117680.0,117670.0,1.46674091]
[1758227819497,0.52852258,117680.0,117670.0,1.46674091]
[1758227819801,1.29784258,117680.0,117670.0,1.46674091]
[1758227820003,0.8761118,117680.0,117670.0,1.46674091]
[1758227820203,1.29784258,117680.0,117670.0,1.46674091]
[1758227820405,1.31134258,117680.0,117670.0,1.46674091]
[1758227820805,0.54202258,117680.0,117670.0,1.46674091]
[1758227821007,1.31126258,117680.0,117670.0,1.46674091]
[1758227822009,1.31126258,117680.0,117670.0,0.88674091]
[1758227822405,1.31122258,117680.0,117670.0,0.87414091]
[1758227822704,1.31122258,117680.0,117670.0,0.51334091]
[1758227824296,1.31118258,117680.0,117670.0,0.51334091]
[1758227825007,0.1202918,117680.0,117670.0,0.10421013]
[1758227825208,1.31154258,117680.0,117670.0,0.92594091]
[1758227826607,1.31154258,117680.0,117670.0,1.28674091]
[1758227826806,1.31154258,117680.0,117670.0,0.92594091]
[1758227827010,1.31154258,117680.0,117670.0,0.91334091]
[1758227827506,0.1202918,117680.0,117670.0,0.91334091]
[1758227827712,0.8763518,117680.0,117670.0,1.01088691]
[1758227827912,0.1067918,117680.0,117670.0,1.01088691]
[1758227828311,1.29812258,117680.0,117670.0,1.01088691]
[1758227828612,0.45620124,117680.0,117670.0,1.01088691]
[1758227828813,1.22580124,117680.0,117670.0,1.01088691]
[1758227829010,0.45620124,117680.0,117670.0,1.28674091]
[1758227829214,1.22576124,117680.0,117670.0,1.28674091]
[1758227830510,0.45620124,117680.0,117670.0,1.28674091]
[1758227830709,1.22568124,117680.0,117670.0,1.28674091]
[1758227831214,0.03447046,117680.0,117670.0,1.28674091]
[1758227831516,1.22568124,117680.0,117670.0,1.28674091]
[1758227831816,0.80395046,117680.0,117670.0,1.28674091]
[1758227832016,0.80391046,117680.0,117670.0,1.28674091]
[1758227832210,1.24824124,117680.0,117670.0,1.28674091]
[1758227832516,0.82659046,117680.0,117670.0,1.28674091]
[1758227832815,0.82659046,117680.0,117670.0,0.86501013]
[1758227833015,0.05707046,117680.0,117670.0,1.28674091]
[1758227833310,0.82659046,117680.0,117670.0,1.28674091]
[1758227833812,0.05707046,117680.0,117670.0,1.28674091]
[1758227834113,0.82667046,117680.0,117670.0,1.28674091]
[1758227834605,0.82663046,117680.0,117670.0,1.28674091]
[1758227835006,0.82663046,117680.0,117670.0,1.37168691]
[1758227835213,0.0226,117680.0,117670.0,1.37168691]
[1758227835411,0.79216,117680.0,117670.0,1.37168691]
[1758227835711,1.05586,117680.0,117670.0,1.37168691]
[1758227836116,0.2637,117680.0,117670.0,1.61168691]
[1758227836321,1.1181588,117680.0,117670.0,1.37168691]
[1758227836507,1.1407588,117680.0,117670.0,1.37168691]
[1758227836707,1.1411988,117680.0,117670.0,1.37168691]
[1758227838219,1.1411988,117680.0,117670.0,0.94995613]
[1758227838524,1.1411988,117680.0,117670.0,1.37168691]
[1758227840109,0.2863,117680.0,117670.0,1.37168691]
[1758227840310,1.05638,117680.0,117670.0,1.37168691]
[1758227842125,1.1413188,117680.0,117670.0,1.37168691]
[1758227846128,1.1413188,117680.0,117670.0,0.94995613]
[1758227846328,1.1413188,117680.0,117670.0,1.37168691]
[1758227847822,1.1412788,117680.0,117670.0,1.37168691]
[1758227849735,1.1412788,117680.0,117670.0,1.23069349]
[1758227850528,1.1412788,117680.0,117670.0,1.14574749]
[1758227852233,1.1412788,117680.0,117670.0,0.86501013]
[1758227852426,1.1412788,117680.0,117670.0,1.14574749]
[1758227853335,1.1412788,117680.0,117670.0,1.23069349]
[1758227854742,1.1410388,117680.0,117670.0,1.23069349]
[1758227855933,0.3712388,117680.0,117670.0,1.23069349]
[1758227856140,1.1409988,117680.0,117670.0,1.23069349]
[1758227856537,0.3712388,117680.0,117670.0,1.23069349]
[1758227856734,1.1409188,117680.0,117670.0,1.23069349]
[1758227857437,1.1409188,117680.0,117670.0,1.24776763]
[1758227858439,1.1183188,117680.0,117670.0,1.24776763]
[1758227860038,1.1183188,117680.0,117670.0,0.96703027]
[1758227860240,1.1183188,117680.0,117670.0,1.24776763]
[1758227860439,1.1183188,117680.0,117670.0,1.35416993]
[1758227860942,1.1183188,117680.0,117670.0,1.3542396]
[1758227862042,0.3486388,117680.0,117670.0,1.3542396]
[1758227862341,1.1181988,117680.0,117670.0,1.3542396]
[1758227863045,0.3486388,117680.0,117670.0,1.3542396]
[1758227863643,1.1180788,117680.0,117670.0,1.3542396]
[1758227863941,1.1180788,117680.0,117670.0,1.07350224]
[1758227864141,1.1180788,117680.0,117670.0,1.3542396]
[1758227864842,1.1180788,117680.0,117670.0,1.2478373]
[1758227866642,1.1407388,117680.0,117670.0,1.2478373]
[1758227867548,0.3712988,117680.0,117670.0,1.2478373]
[1758227867846,1.1412588,117680.0,117670.0,1.2478373]
[1758227868749,0.3712988,117680.0,117670.0,1.2478373]
[1758227868948,1.1412588,117680.0,117670.0,1.2478373]
[1758227869635,1.1412588,117680.0,117670.0,0.8870373]
[1758227869834,1.1412588,117680.0,117670.0,1.1628913]
[1758227871351,1.1412588,117680.0,117670.0,1.3728913]
[1758227871945,1.1412588,117680.0,117670.0,1.1628913]
[1758227875548,0.3712988,117680.0,117670.0,0.88215394]
[1758227875849,1.1410188,117680.0,117670.0,1.1628913]
[1758227879261,1.1410188,117680.0,117670.0,0.88215394]
[1758227879454,1.1410188,117680.0,117670.0,1.1628913]
[1758227881353,0.3712988,117680.0,117670.0,1.1628913]
[1758227881557,1.1408188,117680.0,117670.0,1.1628913]
[1758227882153,0.3712988,117680.0,117670.0,1.1628913]
[1758227882357,1.1408188,117680.0,117670.0,1.1628913]
[1758227882754,0.3712988,117680.0,117670.0,1.1628913]
[1758227882959,1.1408188,117680.0,117670.0,1.1628913]
[1758227883455,0.3712988,117680.0,117670.0,1.1628913]
[1758227883654,1.1410988,117680.0,117670.0,1.1628913]
[1758227883959,1.1410988,117680.0,117670.0,0.88215394]
[1758227884163,1.1410988,117680.0,117670.0,1.1628913]
[1758227884456,0.3712988,117680.0,117670.0,1.1628913]
[1758227884761,1.1410588,117680.0,117670.0,1.1628913]
[1758227885663,0.3712988,117680.0,117670.0,1.1628913]
[1758227885959,1.1410588,117680.0,117670.0,1.2478373]
[1758227886758,1.1410588,117680.0,117670.0,1.1628913]
[1758227887253,1.1410588,117680.0,117670.0,1.4028913]
[1758227887660,1.1410588,117680.0,117670.0,1.1628913]
[1758227887854,0.3712988,117680.0,117670.0,1.1628913]
[1758227888056,1.03338,117680.0,117670.0,1.73857456]
[1758227888261,0.2637,117680.0,117670.0,1.84499783]
[1758227888565,0.3486387,117680.0,117670.0,1.73869567]
[1758227888863,1.1191187,117680.0,117670.0,1.45795864]
[1758227889162,1.1191187,117680.0,117670.0,1.738696]
[1758227889357,1.1191187,117680.0,117670.0,1.17722128]
[1758227889556,1.1191187,117680.0,117670.0,1.738696]
[1758227889557,1.1191587,117680.0,117670.0,1.738696]
[1758227890364,0.3486387,117680.0,117670.0,1.738696]
[1758227890558,1.1191587,117680.0,117670.0,1.738696]
[1758227891160,0.3486387,117680.0,117670.0,1.738696]
[1758227891361,1.1192387,117680.0,117670.0,1.738696]
[1758227891757,1.1192387,117680.0,117670.0,1.45795864]
[1758227892264,1.1192387,117680.0,117670.0,1.44069339]
[1758227892459,1.1191587,117680.0,117670.0,1.4580897]
[1758227892664,1.1191587,117680.0,117670.0,1.73880964]
[1758227893058,1.1191587,117680.0,117670.0,1.89081292]
[1758227895454,1.1191587,117680.0,117670.0,1.61007556]
[1758227896262,0.3486387,117680.0,117670.0,1.61007556]
[1758227896463,1.1191187,117680.0,117670.0,1.61007556]
[1758227897166,1.1191187,117680.0,117670.0,1.45807228]
[1758227897565,1.1193987,117680.0,117670.0,1.45807228]
[1758227898065,1.1193987,117680.0,117670.0,1.37312638]
[1758227898768,1.1193987,117680.0,117670.0,1.45807238]
[1758227900263,1.1196787,117680.0,117670.0,1.45807238]
[1758227901163,1.1196787,117680.0,117670.0,1.17733502]
[1758227901362,1.1196787,117680.0,117670.0,1.45807238]
[1758227906966,1.1196787,117680.0,117670.0,1.61007566]
[1758227909776,1.1196787,117680.0,117670.0,2.1715133]
[1758227910072,1.1196787,117680.0,117670.0,2.01951002]
[1758227910470,1.1196787,117680.0,117670.0,1.59842252]
[1758227911173,1.1196787,117680.0,117670.0,2.01951002]
[1758227912773,1.1196787,117680.0,117670.0,1.09238902]
[1758227913076,1.1196787,117680.0,117670.0,2.01951002]
[1758227920487,1.1196787,117680.0,117670.0,2.1715133]
[1758227923285,1.1196787,117680.0,117670.0,1.3293383]
[1758227923678,1.1196787,117680.0,117670.0,2.1715133]
[1758227926982,1.1196787,117680.0,117670.0,1.7504258]
[1758227928489,1.10948219,117680.0,117670.0,1.7504258]
[1758227928984,1.10948219,117680.0,117670.0,2.1715133]
[1758227930090,1.10948219,117680.0,117670.0,2.01951002]
[1758227931994,1.10948219,117680.0,117670.0,2.17148536]
[1758227935103,1.10948219,117680.0,117670.0,2.01951002]
[1758227935398,1.10948219,117680.0,117670.0,1.17733502]
[1758227935693,1.10948219,117680.0,117670.0,2.01951002]
[1758227936288,0.33844219,117680.0,117670.0,2.01951002]
[1758227936495,1.10904219,117680.0,117670.0,2.17148725]
[1758227939696,1.10904219,117680.0,117670.0,1.32931225]
[1758227940202,1.10904219,117680.0,117670.0,1.75039975]
[1758227940498,1.53012969,117680.0,117670.0,1.75039975]
[1758227940998,1.98412338,117680.0,117670.0,1.35077553]
[1758227941195,2.25733338,117680.0,117670.0,0.75999664]
[1758227941497,2.61813338,117680.0,117670.0,0.07940013]
[1758227941695,3.03922088,117680.0,117670.0,0.18579097]
[1758227941889,3.03922088,117680.0,117670.0,0.17579097]
[1758227941890,2.78571739,117680.0,117670.0,0.17579097]
[1758227942096,0.1214761,117670.0,117660.0,0.11484709]
[1758227942299,1.3244511,117670.0,117660.0,0.26484709]
[1758227942500,1.5744511,117670.0,117660.0,0.15845625]
[1758227943200,1.5744511,117670.0,117660.0,0.16245625]
[1758227943602,1.5744511,117670.0,117660.0,0.22276714]
[1758227944100,1.5744511,117670.0,117660.0,0.07276714]
[1758227944294,1.1533636,117670.0,117660.0,0.004]
[1758227944496,1.9244036,117670.0,117660.0,0.004]
[1758227945902,1.9244836,117670.0,117660.0,0.004]
[1758227946202,2.3455711,117670.0,117660.0,0.004]
[1758227946599,1.5744511,117670.0,117660.0,0.004]
[1758227946900,2.3458511,117670.0,117660.0,0.004]
[1758227947601,1.5744511,117670.0,117660.0,0.204]
[1758227947802,2.3458111,117670.0,117660.0,0.204]
[1758227953609,1.5744511,117670.0,117660.0,0.204]
[1758227953798,2.3455711,117670.0,117660.0,0.204]
[1758227955206,1.5744511,117670.0,117660.0,0.204]
[1758227955504,2.3455311,117670.0,117660.0,0.204]
[1758227956503,1.5744511,117670.0,117660.0,0.204]
[1758227956703,2.3455311,117670.0,117660.0,0.204]
[1758227957206,4.1354511,117670.0,117660.0,0.204]
[1758227960302,3.3643711,117670.0,117660.0,0.204]
[1758227960503,4.1352111,117670.0,117660.0,0.204]
[1758227966411,4.1350511,117670.0,117660.0,0.204]
[1758227972015,3.57376339,117670.0,117660.0,0.204]
[1758227974417,3.85465068,117670.0,117660.0,0.204]
[1758227974619,3.85465068,117670.0,117660.0,0.004]
[1758227979324,3.60465068,117670.0,117660.0,0.004]
[1758227980125,3.32376339,117670.0,117660.0,0.004]
[1758227983728,3.32376339,117670.0,117660.0,0.11039084]
[1758227989630,3.60465068,117670.0,117660.0,0.11039084]
[1758227989829,3.0428761,117670.0,117660.0,0.11039084]
[1758227990035,3.60465068,117670.0,117660.0,0.004]
[1758227990336,3.32376339,117670.0,117660.0,0.004]
[1758227991334,3.60465068,117670.0,117660.0,0.004]
[1758227994047,3.60465068,117670.0,117660.0,0.11039084]
[1758227995746,2.83397068,117670.0,117660.0,0.11039084]
[1758227995941,3.60409068,117670.0,117660.0,0.11039084]
[1758227998353,3.32320339,117670.0,117660.0,0.11039084]
[1758227998651,3.32304339,117670.0,117660.0,0.11039084]
[1758227998846,2.2721961,117670.0,117660.0,0.13275084]
[1758227999045,3.32304339,117670.0,117660.0,0.02636]
[1758227999244,1.9113961,117670.0,117660.0,1.20499039]
[1758227999449,1.8980761,117670.0,117660.0,1.84667768]
[1758227999753,2.6709561,117670.0,117660.0,2.24306852]
[1758228000153,2.6709561,117670.0,117660.0,1.85579039]
[1758228001254,2.6709561,117670.0,117660.0,1.77083729]
[1758228002249,1.8980761,117670.0,117660.0,1.77083729]
[1758228002450,2.6708761,117670.0,117660.0,1.77083729]
[1758228002749,1.81313,117670.0,117660.0,2.13667768]
[1758228003054,2.56276,117670.0,117660.0,2.24307759]
[1758228004149,2.56276,117670.0,117660.0,2.26024999]
[1758228006956,2.56276,117670.0,117660.0,1.69847541]
[1758228007254,2.56276,117670.0,117660.0,2.26024999]
[1758228010759,1.78992,117670.0,117660.0,2.26024999]
[1758228011058,2.56292,117670.0,117660.0,2.26024999]
[1758228013561,2.82662,117670.0,117660.0,2.26024999]
[1758228014764,1.0367,117670.0,117660.0,2.26024999]
[1758228017259,1.03618,117670.0,117660.0,2.26024999]
[1758228022264,1.121123,117670.0,117660.0,2.26024999]
[1758228022466,1.03618,117670.0,117660.0,2.26024999]
[1758228023269,1.03391412,117670.0,117660.0,2.26024999]
[1758228025562,1.03391412,117670.0,117660.0,2.15385008]
[1758228030063,1.03391412,117670.0,117660.0,2.30582731]
[1758228030463,1.02371747,117670.0,117660.0,2.30582731]
[1758228030973,1.02371747,117670.0,117660.0,2.15385008]
[1758228031471,0.25123747,117670.0,117660.0,2.15385008]
[1758228031671,1.02303747,117670.0,117660.0,2.15385008]
[1758228033075,1.02303747,117670.0,117660.0,2.30588936]
[1758228033774,1.02303747,117670.0,117660.0,2.58632514]
[1758228035271,0.25123747,117670.0,117660.0,2.58632514]
[1758228035471,1.02295747,117670.0,117660.0,2.58632514]
[1758228035976,1.02279747,117670.0,117660.0,2.58632514]
[1758228036367,1.02279747,117670.0,117660.0,3.00743032]
[1758228038077,1.02279747,117670.0,117660.0,2.58632514]
[1758228038580,1.02279747,117670.0,117660.0,1.74411478]
[1758228038781,1.02279747,117670.0,117660.0,2.58632514]
[1758228039279,1.02279747,117670.0,117660.0,2.33632514]
[1758228039482,0.25123747,117670.0,117660.0,2.33632514]
[1758228039779,1.02267747,117670.0,117660.0,2.33632514]
[1758228039972,1.02267747,117670.0,117660.0,2.75743032]
[1758228040366,1.02267747,117670.0,117660.0,2.60539104]
[1758228041176,1.10762257,117670.0,117660.0,2.60539104]
[1758228041481,1.10762257,117670.0,117660.0,2.18428586]
[1758228043283,0.33618257,117670.0,117660.0,2.18428586]
[1758228043583,1.02263747,117670.0,117660.0,2.18428586]
[1758228043793,1.10758257,117670.0,117660.0,2.18428586]
[1758228044084,1.10758257,117670.0,117660.0,2.33631038]
[1758228045585,1.10758257,117670.0,117660.0,2.18428586]
[1758228045783,1.10758257,117670.0,117660.0,2.3363236]
[1758228046682,1.10758257,117670.0,117660.0,2.18428586]
[1758228051484,1.10758257,117670.0,117660.0,1.82348586]
[1758228051686,1.10758257,117670.0,117660.0,2.54508586]
[1758228053884,0.25123747,117670.0,117660.0,2.54508586]
[1758228054091,0.25123747,117670.0,117660.0,2.96619104]
[1758228054386,1.02223747,117670.0,117660.0,2.96619104]
[1758228055891,0.25123747,117670.0,117660.0,2.96619104]
[1758228056089,1.02223747,117670.0,117660.0,2.96619104]
[1758228056277,0.25123747,117670.0,117660.0,2.96619104]
[1758228056481,0.01968619,117680.0,117670.0,0.1210551]
[1758228056686,0.01958619,117680.0,117670.0,2.16406546]
[1758228056884,0.79174619,117680.0,117670.0,2.16406546]
[1758228057192,0.79182619,117680.0,117670.0,2.16406546]
[1758228058794,0.79182619,117680.0,117670.0,2.16606546]
[1758228059893,0.79182619,117680.0,117670.0,2.27253618]
[1758228061393,0.01958619,117680.0,117670.0,2.27253618]
[1758228061589,0.79166619,117680.0,117670.0,2.27253618]
[1758228062499,0.77208,117680.0,117670.0,2.27253618]
[1758228063390,0.77208,117680.0,117670.0,2.16606546]
[1758228065294,0.77208,117680.0,117670.0,1.3238551]
[1758228065494,0.77208,117680.0,117670.0,2.16606546]
[1758228066997,1.02331747,117680.0,117670.0,2.16606546]
[1758228073302,0.95099612,117680.0,117670.0,2.16606546]
[1758228074305,0.25123747,117680.0,117670.0,2.16606546]
[1758228074496,1.02275747,117680.0,117670.0,2.16606546]
[1758228079108,1.02255747,117680.0,117670.0,2.16606546]
[1758228079505,1.02255747,117680.0,117670.0,2.12995546]
[1758228079714,1.02255747,117680.0,117670.0,2.14315546]
[1758228082309,1.02255747,117680.0,117670.0,2.2951932]
[1758228082803,1.02255747,117680.0,117670.0,2.6559932]
[1758228083004,1.02255747,117680.0,117670.0,2.6427932]
[1758228083204,1.02255747,117680.0,117670.0,2.6560432]
[1758228084516,0.25123747,117680.0,117670.0,3.07714838]
[1758228084712,0.79150807,117680.0,117670.0,2.92511064]
[1758228084914,0.79150807,117680.0,117670.0,3.27500546]
[1758228084915,0.22770807,117680.0,117670.0,3.27500546]
[1758228085413,0.22770807,117680.0,117670.0,3.27496546]
[1758228085603,0.22770807,117680.0,117670.0,2.50300546]
[1758228085808,0.22870807,117680.0,117670.0,2.50600546]
[1758228086008,0.22870807,117680.0,117670.0,2.65700272]
[1758228086309,0.22870807,117680.0,117670.0,2.66200272]
[1758228090814,0.22870807,117680.0,117670.0,2.51000546]
[1758228091613,0.22870807,117680.0,117670.0,2.24089824]
[1758228092210,1.00030807,117680.0,117670.0,2.24089824]
[1758228092410,1.00030807,117680.0,117670.0,2.51000616]
[1758228093611,1.00026807,117680.0,117670.0,2.51000616]
[1758228093913,0.77256,117680.0,117670.0,2.51000616]
[1758228094718,0.7724,117680.0,117670.0,2.51000616]
[1758228095219,0.001,117680.0,117670.0,2.51000616]
[1758228095421,0.7724,117680.0,117670.0,2.51000616]
[1758228095720,0.7724,117680.0,117670.0,1.94849364]
[1758228096418,0.7724,117680.0,117670.0,2.1004909]
[1758228098017,0.7724,117680.0,117670.0,1.94849364]
[1758228098522,0.8573386,117680.0,117670.0,1.94849364]
[1758228098721,0.77224,117680.0,117670.0,1.94849364]
[1758228099114,0.77228,117680.0,117670.0,1.94849364]
[1758228102631,0.001,117680.0,117670.0,1.94849364]
[1758228102827,0.77208,117680.0,117670.0,2.1004909]
[1758228103228,0.001,117680.0,117670.0,2.1004909]
[1758228103429,0.77208,117680.0,117670.0,2.1004909]
[1758228104629,0.001,117680.0,117670.0,2.1004909]
[1758228104834,0.77208,117680.0,117670.0,2.1004909]
[1758228105533,0.001,117680.0,117670.0,2.1004909]
[1758228105930,0.60892,117680.0,117670.0,2.20695977]
[1758228106135,0.60892,117680.0,117670.0,2.05496251]
[1758228106436,0.001,117680.0,117670.0,2.05496251]
[1758228106734,0.772,117680.0,117670.0,2.05496251]
[1758228113539,0.772,117680.0,117670.0,1.77426467]
[1758228113730,0.772,117680.0,117670.0,2.05496251]
[1758228115339,0.77188,117680.0,117670.0,2.05496251]
[1758228115935,0.77188,117680.0,117670.0,1.94849364]
[1758228116337,0.77192,117680.0,117670.0,1.94849364]
[1758228121039,0.8703587,117680.0,117670.0,1.97008286]
[1758228121245,0.8703587,117680.0,117670.0,2.05502876]
[1758228121635,0.78542,117680.0,117670.0,2.05502876]
[1758228121831,0.78542,117680.0,117670.0,1.6677959]
[1758228122140,0.78542,117680.0,117670.0,1.94849374]
[1758228122949,0.77192,117680.0,117670.0,1.6677959]
[1758228123143,0.77192,117680.0,117670.0,1.94849374]
[1758228124950,0.77192,117680.0,117670.0,1.96538642]
[1758228125139,0.001,117680.0,117670.0,1.96538642]
[1758228125340,0.77276,117680.0,117670.0,1.96538642]
[1758228126146,0.77276,117680.0,117670.0,2.11738368]
[1758228126446,1.00046807,117680.0,117670.0,2.11738368]
[1758228131053,1.00046807,117680.0,117670.0,1.96538642]
[1758228134249,0.8711987,117680.0,117670.0,1.59974268]
[1758228134459,0.78626,117680.0,117670.0,1.96538642]
[1758228134647,0.77276,117680.0,117670.0,1.96538642]
[1758228135453,0.78626,117680.0,117670.0,1.96538642]
[1758228136853,0.78626,117680.0,117670.0,1.95213642]
[1758228137053,0.8711987,117680.0,117670.0,1.86719052]
[1758228137548,0.8711987,117680.0,117670.0,2.01918778]
[1758228138555,0.8711987,117680.0,117670.0,2.10413368]
[1758228140661,0.8711987,117680.0,117670.0,1.95213642]
[1758228142563,0.8711987,117680.0,117670.0,1.67143858]
[1758228142764,0.8711987,117680.0,117670.0,1.95213642]
[1758228143162,0.8711987,117680.0,117670.0,2.11748368]
[1758228143360,0.8576987,117680.0,117670.0,2.11748368]
[1758228144764,0.8576987,117680.0,117670.0,1.96548642]
[1758228147161,1.08540677,117680.0,117670.0,1.96548642]
[1758228150169,1.08540677,117680.0,117670.0,1.68478858]
[1758228150468,1.08540677,117680.0,117670.0,1.96548642]
[1758228151468,1.08540677,117680.0,117670.0,1.68478858]
[1758228151766,1.08540677,117680.0,117670.0,1.96548642]
[1758228155773,1.50648347,117680.0,117670.0,2.10586528]
[1758228155968,1.50648347,117680.0,117670.0,2.25807748]
[1758228160373,0.31364677,117680.0,117670.0,2.25807748]
[1758228160674,1.50712347,117680.0,117670.0,2.25807748]
[1758228161378,1.08604677,117680.0,117670.0,2.25807748]
[1758228161677,1.50712347,117680.0,117670.0,2.25807748]
[1758228162277,1.42218477,117680.0,117670.0,2.25807748]
[1758228164277,1.00110807,117680.0,117670.0,2.25807748]
[1758228166376,1.00110807,117680.0,117670.0,2.10586528]
[1758228167280,1.42218477,117680.0,117670.0,2.10586528]
[1758228168079,1.42218477,117680.0,117670.0,2.21245083]
[1758228169279,1.50712317,117680.0,117670.0,2.21245083]
[1758228170479,1.51987317,117680.0,117670.0,2.21245083]
[1758228175390,1.51987317,117680.0,117670.0,2.10586528]
[1758228180288,1.00082807,117680.0,117670.0,2.10586528]
[1758228180682,0.22870807,117680.0,117670.0,2.10586528]
[1758228180985,1.00074807,117680.0,117670.0,2.10586528]
[1758228182587,1.00074807,117680.0,117670.0,1.68478858]
[1758228182790,1.00074807,117680.0,117670.0,2.10586528]
[1758228185793,1.00054807,117680.0,117670.0,2.10586528]
[1758228186596,1.42150477,117680.0,117670.0,2.10586528]
[1758228190002,0.64978477,117680.0,117670.0,2.10586528]
[1758228190201,1.42134477,117680.0,117670.0,2.10586528]
[1758228193306,1.00026807,117680.0,117670.0,2.10586528]
[1758228197812,1.00026807,117680.0,117670.0,1.68478858]
[1758228198010,1.00026807,117680.0,117670.0,2.10586528]
[1758228201114,0.22870807,117680.0,117670.0,2.10586528]
[1758228201499,0.99958807,117680.0,117670.0,2.10586528]
[1758228201713,0.22870807,117680.0,117670.0,2.10586528]
[1758228201906,0.99958807,117680.0,117670.0,2.10586528]
[1758228204014,0.22870807,117680.0,117670.0,2.10586528]
[1758228204213,0.99954807,117680.0,117670.0,2.52694198]
[1758228205815,0.99954807,117680.0,117670.0,2.67919793]
[1758228207513,0.99954807,117680.0,117670.0,2.52694198]
[1758228208114,0.22870807,117680.0,117670.0,2.52694198]
[1758228208311,0.99938807,117680.0,117670.0,2.77694198]
[1758228209006,0.77168,117680.0,117670.0,2.77694198]
[1758228209911,0.77168,117680.0,117670.0,2.92920401]
[1758228215314,0.77168,117680.0,117670.0,3.12577975]
[1758228215618,0.77168,117680.0,117670.0,2.97351772]
[1758228215818,0.77168,117680.0,117670.0,2.69269092]
[1758228217313,0.77168,117680.0,117670.0,2.84478803]
[1758228217715,0.77168,117680.0,117670.0,2.64821229]
[1758228219318,0.77168,117680.0,117670.0,2.39821229]
[1758228227620,0.77168,117680.0,117670.0,2.24611518]
[1758228230724,0.77168,117680.0,117670.0,1.68478858]
[1758228230932,0.77168,117680.0,117670.0,2.24611518]
[1758228231934,0.7716,117680.0,117670.0,2.24611518]
[1758228232430,0.7716,117680.0,117670.0,2.44269092]
[1758228234032,0.001,117680.0,117670.0,2.44269092]
[1758228243143,0.001,117680.0,117670.0,3.21325092]
[1758228245840,0.001,117680.0,117670.0,2.44269092]
[1758228246034,0.001,117680.0,117670.0,3.21321092]
[1758228247236,0.001,117680.0,117670.0,2.44269092]
[1758228247437,0.001,117680.0,117670.0,3.21333023]
[1758228247739,0.001,117680.0,117670.0,2.44281023]
[1758228248042,0.001,117680.0,117670.0,3.21333023]
[1758228248842,0.001,117680.0,117670.0,2.44281023]
[1758228249044,0.001,117680.0,117670.0,3.21333023]
[1758228249440,0.82938505,117690.0,117680.0,0.0227]
[1758228249641,0.85166505,117690.0,117680.0,1.94095176]
[1758228250744,0.85166505,117690.0,117680.0,1.94295176]
[1758228251737,0.85166505,117690.0,117680.0,1.94595176]
[1758228256042,0.85166505,117690.0,117680.0,1.8784848]
[1758228256546,0.107211,117690.0,117680.0,1.8784848]
[1758228256750,0.877691,117690.0,117680.0,1.8784848]
[1758228257942,0.189507,117700.0,117680.0,1.98517238]
[1758228258142,0.107249,117700.0,117690.0,0.6778833]
[1758228258345,0.877689,117700.0,117690.0,1.5978833]
[1758228259250,0.877689,117700.0,117690.0,1.5998833]
[1758228259839,0.877689,117700.0,117690.0,1.6008833]
[1758228260748,0.891659,117700.0,117690.0,1.5871633]
[1758228260951,1.1723223,117700.0,117690.0,1.5871633]
[1758228261640,0.891659,117700.0,117690.0,1.5871633]
[1758228261846,0.891659,117700.0,117690.0,1.65543061]
[1758228262451,0.891659,117700.0,117690.0,1.80784155]
[1758228263548,1.1723223,117700.0,117690.0,1.80784155]
[1758228265358,1.4529856,117700.0,117690.0,1.50447825]
[1758228265752,1.7029856,117700.0,117690.0,0.633]
[1758228266056,1.7029856,117700.0,117690.0,0.73970489]
[1758228266554,1.7029856,117700.0,117690.0,0.633]
[1758228267257,1.7029856,117700.0,117690.0,0.593]
[1758228270160,0.9325456,117700.0,117690.0,0.593]
[1758228270359,1.7029456,117700.0,117690.0,0.593]
[1758228273655,1.7029456,117700.0,117690.0,0.69970489]
[1758228273864,0.121219,117700.0,117690.0,1.40605819]
[1758228274067,0.877649,117700.0,117690.0,1.3842837]
[1758228274266,0.877649,117700.0,117690.0,1.5993533]
[1758228274564,0.891319,117700.0,117690.0,1.5993533]
[1758228275063,0.891319,117700.0,117690.0,1.31869]
[1758228275260,0.891319,117700.0,117690.0,1.5993533]
[1758228275564,0.891319,117700.0,117690.0,1.66876882]
[1758228275765,1.1719823,117700.0,117690.0,1.66876882]
[1758228276065,0.4015823,117700.0,117690.0,1.66876882]
[1758228276260,0.891319,117700.0,117690.0,1.38810552]
[1758228276466,0.891319,117700.0,117690.0,1.66876882]
[1758228277365,0.120919,117700.0,117690.0,1.66876882]
[1758228277563,0.891319,117700.0,117690.0,1.66876882]
[1758228277769,1.31226069,117700.0,117690.0,1.80904721]
[1758228277968,0.54186069,117700.0,117690.0,1.80904721]
[1758228278170,1.31226069,117700.0,117690.0,1.80904721]
[1758228279971,1.31226069,117700.0,117690.0,1.79621721]
[1758228283672,0.891319,117700.0,117690.0,1.79621721]
[1758228283971,1.31226069,117700.0,117690.0,1.79621721]
[1758228287075,1.31226069,117700.0,117690.0,1.80904721]
[1758228288877,0.891319,117700.0,117690.0,1.80904721]
[1758228289078,1.31226069,117700.0,117690.0,1.80904721]
[1758228293976,1.31226069,117700.0,117690.0,1.79621721]
[1758228295973,1.73320238,117700.0,117690.0,1.79621721]
[1758228297578,1.73320238,117700.0,117690.0,1.37527552]
[1758228297784,1.73320238,117700.0,117690.0,1.79621721]
[1758228301588,1.73320238,117700.0,117690.0,1.37527552]
[1758228301890,1.73320238,117700.0,117690.0,1.79621721]
[1758228303789,0.891319,117700.0,117690.0,1.79621721]